bitfinex/quotes_BTCUSD_20250316
["timestamp","ask_amount","ask_price","bid_price","bid_amount"]
[1742122688726,0.08952987,83883.0,83875.0,0.012579]
[1742122688727,0.675369,83876.0,83875.0,0.012579]
[1742122688927,1.21456085,83876.0,83875.0,0.012579]
[1742122690275,1.08008085,83876.0,83875.0,0.012579]
[1742122690450,1.21956085,83876.0,83875.0,0.007579]
[1742122690835,1.23825218,83876.0,83875.0,0.007579]
[1742122691639,1.24225218,83876.0,83875.0,0.007579]
[1742122691847,1.23325218,83876.0,83875.0,0.007579]
[1742122692076,1.23625218,83876.0,83875.0,0.007579]
[1742122692655,1.23325218,83876.0,83875.0,0.007579]
[1742122692854,1.23625218,83876.0,83875.0,0.007579]
[1742122693402,1.24025218,83876.0,83875.0,0.007579]
[1742122699456,1.22156085,83876.0,83875.0,0.007579]
[1742122701723,1.21856085,83876.0,83875.0,0.007579]
[1742122701925,1.22156085,83876.0,83875.0,0.007579]
[1742122702345,1.22156085,83876.0,83875.0,0.0077484]
[1742122702550,1.22189965,83876.0,83875.0,0.0077484]
[1742122702868,1.23759061,83876.0,83875.0,0.0077484]
[1742122703171,1.24159061,83876.0,83875.0,0.0077484]
[1742122703514,1.23759061,83876.0,83875.0,0.0077484]
[1742122703768,1.24159061,83876.0,83875.0,0.0077484]
[1742122703968,1.22289965,83876.0,83875.0,0.0077484]
[1742122704281,1.21889965,83876.0,83875.0,0.0077484]
[1742122704592,1.24688053,83876.0,83875.0,0.0077484]
[1742122705759,1.22289965,83876.0,83875.0,0.0077484]
[1742122705980,0.72497265,83876.0,83875.0,0.0077484]
[1742122706180,0.85945265,83876.0,83875.0,0.0077484]
[1742122706931,0.87814321,83876.0,83875.0,0.0077484]
[1742122707145,0.87414321,83876.0,83875.0,0.0077484]
[1742122707476,0.87314321,83876.0,83875.0,0.0077484]
[1742122707684,0.87514321,83876.0,83875.0,0.0077484]
[1742122707932,0.85645265,83876.0,83875.0,0.0077484]
[1742122709138,0.72197265,83876.0,83875.0,0.0077484]
[1742122709360,0.85645265,83876.0,83875.0,0.0077484]
[1742122709547,0.72197265,83876.0,83875.0,0.0077484]
[1742122709754,0.85645265,83876.0,83875.0,0.0077484]
[1742122711432,0.87514311,83876.0,83875.0,0.0077484]
[1742122712307,0.85645265,83876.0,83875.0,0.0077484]
[1742122716648,0.87514309,83876.0,83875.0,0.0077484]
[1742122718826,0.56322109,83876.0,83875.0,0.0077484]
[1742122719151,0.87514309,83876.0,83875.0,0.0077484]
[1742122719483,0.85645265,83876.0,83875.0,0.0077484]
[1742122720489,0.85345265,83876.0,83875.0,0.0077484]
[1742122720807,0.85145265,83876.0,83875.0,0.0077484]
[1742122721014,0.85445265,83876.0,83875.0,0.0077484]
[1742122722112,0.93475265,83876.0,83875.0,0.0077484]
[1742122722316,0.93275265,83876.0,83875.0,0.0077484]
[1742122722617,0.93575265,83876.0,83875.0,0.0077484]
[1742122722943,0.95444375,83876.0,83875.0,0.0077484]
[1742122724325,0.95744375,83876.0,83875.0,0.0077484]
[1742122729615,0.93875265,83876.0,83875.0,0.0077484]
[1742122732481,0.96272362,83876.0,83875.0,0.0077484]
[1742122732918,0.98141471,83876.0,83875.0,0.0077484]
[1742122734055,0.96272362,83876.0,83875.0,0.0077484]
[1742122737337,0.9814145,83876.0,83875.0,0.0077484]
[1742122738009,0.8469345,83876.0,83875.0,0.0077484]
[1742122738229,0.9813745,83876.0,83875.0,0.0077484]
[1742122738493,0.96268362,83876.0,83875.0,0.0077484]
[1742122741668,0.98137454,83876.0,83875.0,0.0077484]
[1742122742855,0.96268362,83876.0,83875.0,0.0077484]
[1742122748081,0.74794362,83876.0,83875.0,0.0077484]
[1742122748300,0.88238362,83876.0,83875.0,0.0077484]
[1742122752022,0.74794362,83876.0,83875.0,0.0077484]
[1742122752309,0.88238362,83876.0,83875.0,0.0077484]
[1742122754629,0.90107443,83876.0,83875.0,0.0077484]
[1742122755664,0.88238362,83876.0,83875.0,0.0077484]
[1742122755885,0.74794362,83876.0,83875.0,0.0077484]
[1742122756086,0.85841265,83876.0,83875.0,0.0077484]
[1742122756939,0.85541265,83876.0,83875.0,0.0077484]
[1742122757361,0.85741265,83876.0,83875.0,0.0077484]
[1742122757757,0.85141265,83876.0,83875.0,0.0077484]
[1742122758110,0.85541265,83876.0,83875.0,0.0077484]
[1742122758516,0.85341265,83876.0,83875.0,0.0077484]
[1742122758876,0.85541265,83876.0,83875.0,0.0077484]
[1742122763936,0.87410321,83876.0,83875.0,0.0077484]
[1742122764671,0.87010321,83876.0,83875.0,0.0077484]
[1742122764875,0.87610321,83876.0,83875.0,0.0077484]
[1742122765658,0.87310321,83876.0,83875.0,0.0077484]
[1742122766026,0.95160321,83876.0,83875.0,0.0077484]
[1742122766438,0.95460321,83876.0,83875.0,0.0077484]
[1742122786435,0.95460321,83876.0,83875.0,0.0077484]
[1742122795872,0.95452321,83876.0,83875.0,0.0077484]
[1742122796650,0.87702321,83876.0,83875.0,0.0077484]
[1742122798282,0.74266321,83876.0,83875.0,0.0077484]
[1742122798459,0.87702321,83876.0,83875.0,0.0077484]
[1742122801924,0.85833265,83876.0,83875.0,0.0077484]
[1742122806313,0.84641065,83876.0,83875.0,0.0077484]
[1742122807147,0.71205065,83876.0,83875.0,0.0077484]
[1742122807384,0.84641065,83876.0,83875.0,0.0077484]
[1742122807560,0.71205065,83876.0,83875.0,0.0077484]
[1742122808246,0.70505065,83876.0,83875.0,0.0077484]
[1742122808455,0.70805065,83876.0,83875.0,0.0077484]
[1742122808657,0.71205065,83876.0,83875.0,0.0077484]
[1742122809104,0.70905065,83876.0,83875.0,0.0077484]
[1742122809314,0.71005065,83876.0,83875.0,0.0077484]
[1742122809616,0.72874107,83876.0,83875.0,0.0077484]
[1742122810176,0.72474107,83876.0,83875.0,0.0077484]
[1742122810361,0.72674107,83876.0,83875.0,0.0077484]
[1742122810912,0.72474107,83876.0,83875.0,0.0077484]
[1742122811079,0.72574107,83876.0,83875.0,0.0077484]
[1742122811441,0.72474107,83876.0,83875.0,0.0077484]
[1742122811698,0.02002922,83876.0,83875.0,0.0077484]
[1742122811846,0.02002922,83876.0,83875.0,0.09054051]
[1742122812048,0.0013388,83876.0,83875.0,0.0893484]
[1742122813530,0.01342446,83876.0,83875.0,0.0893484]
[1742122814130,0.01242446,83876.0,83875.0,0.0893484]
[1742122815243,0.03111379,83876.0,83875.0,0.0893484]
[1742122815897,0.03111379,83876.0,83875.0,0.0077484]
[1742122821805,0.01902813,83876.0,83875.0,0.0077484]
[1742122822611,0.0003388,83876.0,83875.0,0.0077484]
[1742122826092,0.01902717,83876.0,83875.0,0.0077484]
[1742122827159,0.0003388,83876.0,83875.0,0.0077484]
[1742122830249,0.0003388,83876.0,83875.0,0.0870484]
[1742122830707,0.0003388,83876.0,83875.0,1.5870484]
[1742122830923,0.0003388,83876.0,83875.0,0.10158925]
[1742122831155,0.0003388,83876.0,83875.0,0.10278127]
[1742122831383,0.0003388,83876.0,83875.0,1.60278127]
[1742122831613,0.0003388,83876.0,83875.0,1.60158925]
[1742122832115,0.0003388,83876.0,83875.0,1.65038925]
[1742122833082,0.0003388,83876.0,83875.0,0.0077484]
[1742122834256,0.3,83885.0,83875.0,0.0077484]
[1742122834257,0.19656538,83885.0,83875.0,0.0077484]
[1742122834479,0.13428,83893.0,83876.0,0.00119212]
[1742122834966,0.01868858,83883.0,83875.0,0.0097484]
[1742122835192,0.36352289,83888.0,83875.0,0.00994049]
[1742122835426,0.36352289,83888.0,83875.0,0.0087484]
[1742122835661,0.001,83885.0,83875.0,0.00894049]
[1742122836336,0.3,83887.0,83875.0,0.00894049]
[1742122836753,0.3,83887.0,83875.0,0.05774049]
[1742122837020,0.3,83887.0,83876.0,0.00119206]
[1742122837224,0.001,83885.0,83876.0,0.00119206]
[1742122837417,0.0009004,83885.0,83876.0,0.00119206]
[1742122837822,0.0009004,83885.0,83875.0,0.0565484]
[1742122838028,0.0009004,83885.0,83876.0,0.00119205]
[1742122838600,0.001,83887.0,83876.0,0.00119205]
[1742122838917,0.002,83887.0,83876.0,0.00119205]
[1742122839279,0.24510791,83901.0,83876.0,0.00119205]
[1742122839480,0.36352289,83900.0,83876.0,0.00160703]
[1742122839772,0.001,83885.0,83876.0,0.00160703]
[1742122839954,0.36352289,83900.0,83876.0,0.00160703]
[1742122840200,0.002,83887.0,83876.0,0.00160703]
[1742122840804,0.002,83887.0,83876.0,0.00041498]
[1742122841102,0.37523284,83900.0,83876.0,0.00041498]
[1742122841411,0.22593695,83900.0,83876.0,0.00041498]
[1742122841633,0.3,83899.0,83876.0,0.00041498]
[1742122841767,0.0484,83898.0,83876.0,0.00041498]
[1742122842372,0.0798,83897.0,83876.0,0.00041498]
[1742122842624,0.0484,83896.0,83876.0,0.00041498]
[1742122843280,0.3,83894.0,83876.0,0.00041498]
[1742122843483,0.3,83885.0,83876.0,0.00041498]
[1742122843898,0.3,83883.0,83876.0,0.00041498]
[1742122844114,0.3,83881.0,83876.0,0.00041498]
[1742122845392,0.22833485,83881.0,83876.0,0.00041498]
[1742122845849,0.01869087,83880.0,83876.0,0.00041498]
[1742122847348,0.02069087,83880.0,83876.0,0.00041498]
[1742122848890,0.348507,83882.0,83876.0,0.00041498]
[1742122849102,0.001,83880.0,83876.0,0.00041498]
[1742122849304,0.06521536,83879.0,83876.0,0.00041498]
[1742122850678,0.06721536,83879.0,83876.0,0.00041498]
[1742122851437,0.07808527,83889.0,83876.0,0.00041498]
[1742122851639,0.02392888,83886.0,83876.0,0.00041498]
[1742122851846,0.02392888,83886.0,83876.0,0.00075358]
[1742122852053,0.001,83879.0,83876.0,0.00075358]
[1742122852286,0.003,83879.0,83876.0,0.00075358]
[1742122852487,0.002,83879.0,83876.0,0.00075358]
[1742122852711,0.0001693,83881.0,83876.0,0.00075358]
[1742122853601,0.00109931,83879.0,83876.0,0.00075358]
[1742122853814,0.02637106,83889.0,83876.0,0.00075358]
[1742122854704,0.01454085,83885.0,83876.0,0.00075358]
[1742122854912,0.2085,83879.0,83876.0,0.00075358]
[1742122856061,0.2095,83879.0,83876.0,0.00075358]
[1742122856293,0.2085,83879.0,83876.0,0.00075358]
[1742122856699,0.2095,83879.0,83876.0,0.00075358]
[1742122857333,0.26225929,83879.0,83876.0,0.00075358]
[1742122857537,0.28094949,83879.0,83876.0,0.00075358]
[1742122858636,0.1264,83878.0,83876.0,0.00075358]
[1742122860356,0.01379654,83877.0,83876.0,0.00075358]
[1742122860587,0.01379654,83877.0,83875.0,0.00590964]
[1742122860588,0.0253011,83877.0,83875.0,0.00590964]
[1742122860792,0.00041498,83877.0,83875.0,0.00590964]
[1742122861000,0.4169,83876.0,83875.0,0.00590964]
[1742122862336,0.43144085,83876.0,83875.0,0.00590964]
[1742122862949,0.45362018,83876.0,83875.0,0.00590964]
[1742122863151,0.40207104,83876.0,83875.0,0.00590964]
[1742122863916,0.32872497,83876.0,83875.0,0.00590964]
[1742122864732,0.32872497,83876.0,83875.0,0.00607894]
[1742122865173,0.32872497,83876.0,83853.0,0.0583953]
[1742122865381,0.35552276,83875.0,83853.0,0.0583953]
[1742122865532,0.1364,83874.0,83853.0,0.0583953]
[1742122865928,0.35552276,83873.0,83853.0,0.0583953]
[1742122866181,0.24037756,83868.0,83833.0,0.03119252]
[1742122866380,0.055,83857.0,83833.0,0.03]
[1742122866581,0.49200276,83856.0,83833.0,0.03]
[1742122866795,0.35552276,83855.0,83833.0,0.03]
[1742122867169,0.005,83851.0,83833.0,0.03]
[1742122867362,0.01454085,83849.0,83833.0,0.03]
[1742122867592,0.01454085,83847.0,83833.0,0.03]
[1742122867959,0.01454085,83845.0,83833.0,0.03]
[1742122868157,0.01454085,83845.0,83834.0,0.0751]
[1742122868367,0.01495557,83845.0,83834.0,0.0751]
[1742122868634,0.02669176,83845.0,83833.0,0.03]
[1742122869188,0.03550573,83845.0,83833.0,0.03]
[1742122869437,0.01454085,83843.0,83833.0,0.03]
[1742122869825,0.005,83840.0,83833.0,0.03]
[1742122870032,0.01454085,83841.0,83781.0,0.002]
[1742122870033,0.05,83813.0,83781.0,0.002]
[1742122870233,0.01454085,83779.0,83778.0,0.02329402]
[1742122870411,0.50782361,83779.0,83778.0,0.02329402]
[1742122870625,0.50782361,83779.0,83778.0,0.0184199]
[1742122870825,0.37006361,83779.0,83778.0,0.0184199]
[1742122871025,0.50802361,83779.0,83778.0,0.0184199]
[1742122871200,0.01202082,83779.0,83778.0,0.0184199]
[1742122871422,0.0121831,83810.0,83778.0,0.0184199]
[1742122871624,0.00041421,83779.0,83778.0,0.0184199]
[1742122872251,0.29973635,83816.0,83778.0,0.01848427]
[1742122872425,0.29973635,83816.0,83779.0,0.13836]
[1742122872805,0.29973635,83816.0,83779.0,0.13736]
[1742122873006,0.31176433,83816.0,83779.0,0.13736]
[1742122873258,0.15291763,83815.0,83778.0,0.01848427]
[1742122873448,0.28173678,83815.0,83778.0,0.01848427]
[1742122873603,0.01454085,83810.0,83778.0,0.01848427]
[1742122873806,0.01454085,83814.0,83779.0,0.00119357]
[1742122874382,0.01454085,83814.0,83778.0,0.01848427]
[1742122874383,0.31454085,83814.0,83778.0,0.01848427]
[1742122874587,0.31954085,83812.0,83778.0,0.01848427]
[1742122875294,0.31454085,83810.0,83778.0,0.01848427]
[1742122876115,0.31854085,83810.0,83778.0,0.01848427]
[1742122876775,0.01454085,83802.0,83778.0,0.01865357]
[1742122876946,0.01454085,83795.0,83778.0,0.01865357]
[1742122877111,0.05,83796.0,83778.0,0.01865357]
[1742122877112,0.31454085,83793.0,83778.0,0.01865357]
[1742122877551,0.13837678,83792.0,83778.0,0.01865357]
[1742122877744,0.01454085,83790.0,83778.0,0.01865357]
[1742122878357,0.3,83791.0,83778.0,0.01865357]
[1742122878535,0.3,83791.0,83779.0,1.5]
[1742122879394,0.3,83791.0,83778.0,0.01865357]
[1742122879798,0.01454085,83790.0,83778.0,0.01865357]
[1742122881019,0.3,83791.0,83778.0,0.01865357]
[1742122881252,0.3,83791.0,83779.0,0.0795]
[1742122881644,0.01454085,83790.0,83779.0,0.0795]
[1742122882850,0.01454085,83790.0,83779.0,0.0805]
[1742122883884,0.3,83791.0,83779.0,0.0805]
[1742122885095,0.3,83791.0,83779.0,0.0795]
[1742122885294,0.01454085,83799.0,83779.0,0.0795]
[1742122885295,0.01871044,83790.0,83780.0,0.00119356]
[1742122885859,0.01871044,83790.0,83776.0,0.03499596]
[1742122885992,0.01871044,83790.0,83777.0,0.00119346]
[1742122888354,0.01871044,83790.0,83776.0,1.53505999]
[1742122888771,0.01871044,83790.0,83777.0,0.758]
[1742122888971,0.01871044,83790.0,83777.0,0.838]
[1742122889381,0.30119356,83803.0,83777.0,0.838]
[1742122889543,0.3,83803.0,83777.0,0.8381695]
[1742122889751,0.3,83803.0,83778.0,0.00119336]
[1742122890133,0.3,83803.0,83778.0,1.50119331]
[1742122890263,0.3,83803.0,83778.0,1.5]
[1742122891113,0.300339,83810.0,83779.0,0.00119326]
[1742122891354,0.00119356,83809.0,83779.0,0.00119326]
[1742122891587,0.00119356,83809.0,83778.0,1.5]
[1742122891927,0.002,83803.0,83778.0,1.495]
[1742122892307,0.00119356,83809.0,83777.0,0.8381695]
[1742122892508,0.002,83803.0,83777.0,0.8381695]
[1742122892766,0.00119356,83802.0,83777.0,0.8381695]
[1742122893810,0.00119356,83807.0,83777.0,0.8381695]
[1742122893989,0.01870841,83796.0,83777.0,0.8381695]
[1742122894418,0.00119356,83795.0,83777.0,0.8381695]
[1742122895452,0.00119356,83795.0,83777.0,0.7581695]
[1742122897398,0.00119356,83797.0,83777.0,0.7581695]
[1742122898394,0.002,83795.0,83778.0,0.00119354]
[1742122898606,0.00119356,83794.0,83778.0,0.00119354]
[1742122898805,0.3,83798.0,83778.0,0.00119354]
[1742122898806,0.002,83795.0,83778.0,0.00119354]
[1742122899027,0.00119356,83794.0,83778.0,0.00119354]
[1742122899542,0.004,83795.0,83777.0,0.75436304]
[1742122899978,0.002,83795.0,83777.0,0.75436304]
[1742122900209,0.00149182,83794.0,83777.0,0.75436304]
[1742122900865,0.00149183,83797.0,83777.0,0.75436304]
[1742122901532,0.001,83794.0,83777.0,0.75436304]
[1742122901811,0.00149183,83797.0,83777.0,0.75436304]
[1742122902208,0.3,83796.0,83777.0,0.75436304]
[1742122902430,0.001,83794.0,83777.0,0.75436304]
[1742122902575,0.00149191,83793.0,83777.0,0.75436304]
[1742122902782,0.00149191,83793.0,83778.0,0.0001695]
[1742122903345,0.00149191,83795.0,83778.0,0.0001695]
[1742122903921,0.00149189,83795.0,83778.0,0.0001695]
[1742122904110,0.001,83793.0,83778.0,0.0001695]
[1742122906644,0.002,83793.0,83778.0,0.0001695]
[1742122911974,0.0822,83794.0,83778.0,0.0001695]
[1742122912119,0.00349184,83793.0,83778.0,0.0001695]
[1742122912318,0.00249184,83793.0,83778.0,0.0001695]
[1742122912661,0.00149184,83793.0,83778.0,0.0001695]
[1742122912865,0.00349184,83793.0,83778.0,0.0001695]
[1742122913415,0.00249184,83793.0,83778.0,0.0001695]
[1742122913615,0.00349184,83793.0,83778.0,0.0001695]
[1742122914419,0.00249184,83793.0,83778.0,0.0001695]
[1742122914574,0.00283084,83793.0,83778.0,0.0001695]
[1742122914778,0.00383084,83793.0,83778.0,0.0001695]
[1742122914982,0.01871003,83790.0,83778.0,0.0001695]
[1742122915190,0.00149195,83789.0,83778.0,0.0001695]
[1742122915394,0.01871003,83790.0,83778.0,0.0001695]
[1742122915395,0.00149195,83788.0,83778.0,0.0001695]
[1742122916382,0.00149195,83787.0,83778.0,0.0001695]
[1742122917522,0.00149195,83789.0,83778.0,0.0001695]
[1742122919643,0.13792,83790.0,83778.0,0.00076631]
[1742122920021,0.13792,83790.0,83778.0,0.0001695]
[1742122921989,0.01870985,83788.0,83778.0,0.0001695]
[1742122925985,0.000339,83793.0,83778.0,0.0001695]
[1742122926882,0.000339,83793.0,83779.0,0.1236]
[1742122927107,0.000339,83793.0,83780.0,0.01454085]
[1742122927269,0.000339,83790.0,83780.0,0.01454085]
[1742122927475,0.000339,83790.0,83779.0,0.0764]
[1742122927675,0.000339,83790.0,83778.0,0.0001695]
[1742122928903,0.000339,83790.0,83778.0,0.0011695]
[1742122929467,0.01870775,83788.0,83778.0,0.0011695]
[1742122930229,0.00149185,83787.0,83778.0,0.0011695]
[1742122930437,0.049239,83790.0,83778.0,0.0001695]
[1742122930640,0.00149189,83789.0,83778.0,0.0001695]
[1742122930839,0.00149189,83789.0,83778.0,0.0011695]
[1742122931047,0.0001,83786.0,83778.0,0.0001695]
[1742122931487,0.0001,83786.0,83778.0,0.0011695]
[1742122931683,0.0001,83786.0,83778.0,0.0001695]
[1742122932099,0.0001,83786.0,83778.0,6.95e-05]
[1742122933843,0.01870943,83785.0,83778.0,0.0010695]
[1742122934459,0.00149196,83784.0,83778.0,0.0010695]
[1742122935046,0.00131293,83784.0,83778.0,6.95e-05]
[1742122935407,0.00131293,83784.0,83778.0,0.0010695]
[1742122935619,0.00131293,83784.0,83778.0,6.95e-05]
[1742122935826,0.0813,83783.0,83778.0,6.95e-05]
[1742122936032,0.00131317,83782.0,83778.0,6.95e-05]
[1742122937408,0.3,83780.0,83778.0,6.95e-05]
[1742122937614,0.84789227,83779.0,83778.0,0.0010695]
[1742122937815,0.8464,83779.0,83778.0,0.0010695]
[1742122937966,0.8464,83779.0,83778.0,6.95e-05]
[1742122938944,0.86094085,83779.0,83778.0,6.95e-05]
[1742122939151,0.005,83775.0,83767.0,0.20252607]
[1742122939370,1.48848392,83779.0,83728.0,0.03]
[1742122939371,0.005,83752.0,83728.0,0.03]
[1742122939570,0.005,83752.0,83750.0,0.0310993]
[1742122939571,0.305,83751.0,83750.0,0.0310993]
[1742122939773,0.70429164,83751.0,83750.0,0.0310993]
[1742122939987,0.3,83751.0,83750.0,0.0310993]
[1742122940240,0.3,83751.0,83728.0,0.03]
[1742122940241,0.86719775,83751.0,83728.0,0.03]
[1742122940424,0.86719775,83751.0,83704.0,0.0758]
[1742122940425,0.005,83709.0,83698.0,8e-05]
[1742122940633,0.0017,83710.0,83657.0,0.0340838]
[1742122940634,0.01454085,83699.0,83658.0,0.02334905]
[1742122940836,0.05,83696.0,83657.0,0.0340838]
[1742122941032,0.01954085,83691.0,83657.0,0.0340838]
[1742122941262,0.01454085,83685.0,83657.0,0.0340838]
[1742122941504,0.01954085,83674.0,83657.0,0.0340838]
[1742122941704,0.85141202,83674.0,83673.0,0.32827205]
[1742122941910,0.65057885,83674.0,83673.0,0.29238724]
[1742122942179,0.32517768,83674.0,83673.0,0.29238724]
[1742122942382,0.58757869,83674.0,83673.0,0.28122104]
[1742122942596,0.6063184,83674.0,83673.0,0.23152104]
[1742122942792,0.50531387,83674.0,83673.0,0.23152104]
[1742122942991,0.35353086,83674.0,83673.0,0.23152104]
[1742122943194,0.32437654,83674.0,83673.0,0.25475314]
[1742122943444,0.32437654,83674.0,83673.0,0.23152104]
[1742122944135,0.48544744,83674.0,83673.0,0.23152104]
[1742122944765,0.02437654,83674.0,83673.0,0.23152104]
[1742122944972,0.003,83685.0,83673.0,0.35597978]
[1742122945195,0.003,83685.0,83673.0,0.35502104]
[1742122945500,0.1484,83715.0,83674.0,0.00095804]
[1742122945694,0.01519502,83708.0,83674.0,0.00095804]
[1742122945850,0.00149346,83707.0,83674.0,0.00095804]
[1742122946049,0.1484,83715.0,83675.0,0.01454085]
[1742122946253,0.00149333,83715.0,83677.0,0.01454085]
[1742122946478,0.00149333,83715.0,83679.0,0.01454085]
[1742122946819,0.00149333,83715.0,83681.0,0.01454085]
[1742122946820,0.00112394,83690.0,83681.0,0.01454085]
[1742122946993,0.00112394,83690.0,83682.0,0.00095759]
[1742122947195,0.00012394,83690.0,83682.0,0.00095759]
[1742122947402,0.00012394,83690.0,83689.0,1.5]
[1742122947614,0.00112394,83690.0,83689.0,1.5]
[1742122947828,0.00112394,83690.0,83689.0,1.499]
[1742122948263,0.00212394,83690.0,83689.0,1.499]
[1742122948502,0.005,83750.0,83689.0,1.499]
[1742122948503,0.1486,83726.0,83691.0,0.01954085]
[1742122948632,0.1486,83726.0,83692.0,0.00095694]
[1742122948837,0.1486,83726.0,83691.0,0.01949779]
[1742122949060,0.10691484,83728.0,83696.0,0.005]
[1742122949260,0.12564351,83728.0,83699.0,0.004]
[1742122949871,0.12564351,83728.0,83704.0,0.004]
[1742122950046,0.12564351,83728.0,83706.0,0.0488]
[1742122950247,0.10691484,83728.0,83706.0,0.19724]
[1742122950848,0.00012467,83728.0,83707.0,0.01454085]
[1742122951461,0.29812467,83734.0,83707.0,0.01454085]
[1742122951663,0.29812467,83734.0,83707.0,0.01495506]
[1742122951861,0.10679017,83735.0,83707.0,0.01495506]
[1742122951862,0.10679017,83735.0,83711.0,0.01454085]
[1742122952112,0.10679017,83735.0,83721.0,0.01454085]
[1742122952313,0.001,83754.0,83723.0,0.01854085]
[1742122952496,0.001,83754.0,83724.0,0.75868]
[1742122952895,0.1482,83764.0,83724.0,0.75868]
[1742122952896,0.001,83761.0,83731.0,0.01454085]
[1742122953101,0.001,83761.0,83731.0,0.00482085]
[1742122953310,0.01871799,83754.0,83731.0,0.01283959]
[1742122953518,0.01871799,83754.0,83733.0,0.004]
[1742122953854,0.01871799,83754.0,83737.0,0.004]
[1742122954053,0.001,83774.0,83738.0,0.14812]
[1742122954219,0.14812,83776.0,83738.0,0.27169503]
[1742122954220,0.01871718,83771.0,83738.0,0.27169503]
[1742122954593,0.01871718,83771.0,83749.0,0.1276]
[1742122954824,0.00012467,83771.0,83749.0,0.1316]
[1742122955297,0.00012467,83771.0,83754.0,0.01454085]
[1742122955498,0.00012467,83771.0,83756.0,0.01454085]
[1742122956332,0.00012467,83771.0,83755.0,0.14808]
[1742122956472,0.00012467,83771.0,83756.0,0.014808]
[1742122956685,0.001,83769.0,83756.0,0.014808]
[1742122957441,0.001,83762.0,83756.0,0.014808]
[1742122957647,0.001,83762.0,83754.0,0.003]
[1742122957779,0.001,83770.0,83754.0,0.003]
[1742122957982,0.001,83770.0,83754.0,0.007]
[1742122958325,0.00112467,83771.0,83754.0,0.003]
[1742122958563,0.00112467,83771.0,83756.0,0.005]
[1742122958947,0.00112467,83771.0,83749.0,0.1276]
[1742122959147,0.00112467,83771.0,83750.0,0.785944]
[1742122959562,0.00112467,83771.0,83756.0,0.004]
[1742122960125,0.001,83770.0,83750.0,0.785944]
[1742122960445,0.001,83770.0,83754.0,0.003]
[1742122961009,0.001,83770.0,83750.0,0.785944]
[1742122961206,0.001,83770.0,83756.0,0.004]
[1742122961565,0.001,83770.0,83751.0,0.0243507]
[1742122961968,0.001,83770.0,83754.0,0.005]
[1742122962171,0.001,83755.0,83751.0,0.0243507]
[1742122962372,0.001,83755.0,83752.0,0.027544]
[1742122962984,0.00149226,83769.0,83752.0,0.027544]
[1742122962985,0.001,83753.0,83752.0,0.027544]
[1742122963182,0.001,83753.0,83733.0,0.0499]
[1742122963428,0.001,83738.0,83733.0,0.0499]
[1742122963600,0.001,83737.0,83733.0,0.0499]
[1742122964008,0.00149254,83752.0,83725.0,0.75836]
[1742122964009,0.001,83727.0,83725.0,0.75836]
[1742122964208,0.001,83726.0,83725.0,0.75836]
[1742122964787,0.00149291,83740.0,83725.0,0.75836]
[1742122964788,0.001,83740.0,83725.0,0.75877421]
[1742122965200,0.001,83740.0,83733.0,0.004]
[1742122965400,0.001,83740.0,83725.0,0.75877421]
[1742122965401,0.001,83728.0,83725.0,0.75877421]
[1742122965874,0.001,83726.0,83725.0,0.75877421]
[1742122966133,0.001,83726.0,83725.0,0.00041421]
[1742122966949,0.002,83726.0,83725.0,0.00541421]
[1742122967204,0.002,83726.0,83725.0,0.00041421]
[1742122967205,0.001,83726.0,83725.0,0.00041421]
[1742122967379,0.40678487,83726.0,83725.0,0.00641421]
[1742122967706,0.70629164,83726.0,83725.0,0.01141421]
[1742122967866,0.71983249,83726.0,83725.0,0.00641421]
[1742122968024,0.91972049,83726.0,83725.0,0.01141421]
[1742122968233,1.00667335,83726.0,83725.0,0.00921421]
[1742122968445,1.12624838,83726.0,83725.0,0.00421421]
[1742122968647,1.12724838,83726.0,83725.0,0.00921421]
[1742122968847,1.12724838,83726.0,83725.0,0.005]
[1742122969071,0.001,83690.0,83666.0,0.1772]
[1742122969276,0.001,83674.0,83666.0,0.1]
[1742122969532,0.86763249,83674.0,83673.0,0.17790598]
[1742122969656,0.89162713,83674.0,83673.0,0.17790598]
[1742122969855,0.9567952,83674.0,83673.0,0.17790598]
[1742122970186,1.71497462,83674.0,83673.0,0.17790598]
[1742122970405,0.72024765,83674.0,83673.0,0.14197015]
[1742122970789,0.86850919,83674.0,83673.0,0.14197015]
[1742122971051,0.001,83667.0,83666.0,0.09996001]
[1742122971273,0.72483249,83667.0,83666.0,0.06402418]
[1742122971494,0.01554085,83659.0,83658.0,0.007644]
[1742122971919,0.01554085,83659.0,83657.0,0.0340838]
[1742122971920,0.02054085,83658.0,83657.0,0.00579197]
[1742122972118,1.58823588,83658.0,83657.0,0.00579197]
[1742122972322,0.006,83640.0,83637.0,0.0001694]
[1742122972495,1.46546648,83640.0,83637.0,0.0001694]
[1742122972674,1.62671249,83640.0,83637.0,0.0001694]
[1742122972878,1.61217164,83640.0,83637.0,0.0001694]
[1742122973284,1.46397164,83640.0,83637.0,0.0001694]
[1742122973482,1.61205164,83640.0,83637.0,0.0001694]
[1742122973687,1.64575355,83640.0,83637.0,0.0001694]
[1742122974054,1.64675355,83640.0,83639.0,0.015]
[1742122974739,1.64575355,83640.0,83639.0,0.015]
[1742122974980,1.6312127,83640.0,83639.0,0.015]
[1742122975186,1.6322127,83640.0,83639.0,0.015]
[1742122975803,1.4841327,83640.0,83639.0,0.015]
[1742122975937,1.6321727,83640.0,83639.0,0.015]
[1742122976162,0.85474654,83640.0,83639.0,0.015]
[1742122976361,0.85374654,83640.0,83639.0,0.015]
[1742122976850,0.85474654,83640.0,83639.0,0.015]
[1742122977049,0.55374654,83640.0,83639.0,0.02751694]
[1742122977263,0.40570654,83640.0,83639.0,0.02751694]
[1742122977468,0.40570654,83640.0,83639.0,1.515]
[1742122977898,0.301,83639.0,83637.0,0.0001694]
[1742122978110,0.01554085,83630.0,83629.0,0.00604348]
[1742122978359,0.001,83613.0,83601.0,0.03]
[1742122978561,0.001,83613.0,83601.0,0.02734463]
[1742122978562,0.001,83602.0,83601.0,0.02734463]
[1742122979091,0.72404416,83602.0,83601.0,0.02734463]
[1742122979352,0.87920416,83602.0,83601.0,0.02734463]
[1742122979590,0.3,83602.0,83601.0,0.02734463]
[1742122979828,0.00141465,83602.0,83601.0,0.02734463]
[1742122980072,0.00141465,83602.0,83601.0,0.02723943]
[1742122980766,0.00041465,83602.0,83601.0,0.02723943]
[1742122981719,0.00041465,83602.0,83601.0,0.15413943]
[1742122981972,0.00041465,83602.0,83601.0,0.17006337]
[1742122982216,0.18064,83633.0,83601.0,0.17006337]